fUSD/lending_fUSD_20250211
["ID","MTS","AMOUNT","RATE_DAILY","PERIOD"]
[352772353,1739302257183,-500.0,0.00018971,2]
[352772354,1739302257195,-500.0,0.00018971,2]
[352772355,1739302257207,-500.0,0.00018971,2]
[352772356,1739302257219,-500.0,0.00018971,2]
[352772357,1739302257231,-542.72812166,0.00018972,2]
[352772358,1739302257242,-442.58,0.00018972,2]
[352772359,1739302257253,-500.0,0.00018972,2]
[352772360,1739302257264,-167.27,0.00018972,2]
[352772361,1739302257275,-500.0,0.00018972,2]
[352772362,1739302257286,-500.0,0.00018972,2]
[352772363,1739302257296,-286.52,0.00018972,2]
[352772364,1739302257306,-500.0,0.00018972,2]
[352772365,1739302257316,-500.0,0.00018972,2]
[352772366,1739302257329,-500.0,0.00018972,2]
[352772367,1739302257342,-352.59,0.00018972,2]
[352772368,1739302257352,-500.0,0.00018972,2]
[352772369,1739302257364,-500.0,0.00018972,2]
[352772370,1739302257374,-500.0,0.00018972,2]
[352772371,1739302257384,-569.3,0.00018972,2]
[352772372,1739302257395,-500.0,0.00018972,2]
[352772373,1739302257407,-205.51,0.00018972,2]
[352772374,1739302257418,-500.0,0.00018972,2]
[352772375,1739302257430,-500.0,0.00018972,2]
[352772376,1739302257442,-280.585061,0.00018972,2]
[352772377,1739302257453,-500.0,0.00018972,2]
[352772378,1739302257462,-500.0,0.00018972,2]
[352772379,1739302257472,-336.94,0.00018972,2]
[352772380,1739302257483,-500.0,0.00018972,2]
[352772381,1739302257493,-546.39,0.00018972,2]
[352772382,1739302257504,-553.08,0.00018972,2]
[352772383,1739302257515,-500.0,0.00018972,2]
[352772384,1739302257525,-500.0,0.00018972,2]
[352772385,1739302257536,-500.0,0.00018972,2]
[352772386,1739302257547,-500.0,0.00018972,2]
[352772387,1739302257557,-636.23,0.00018972,2]
[352772388,1739302257567,-495.83,0.00018972,2]
[352772389,1739302257578,-500.0,0.00018972,2]
[352772390,1739302257589,-500.0,0.00018972,2]
[352772391,1739302257600,-315.7,0.00018972,2]
[352772392,1739302257611,-500.0,0.00018972,2]
[352772393,1739302257623,-500.0,0.00018972,2]
[352772394,1739302257633,-500.0,0.00018972,2]
[352772395,1739302257644,-500.0,0.00018972,2]
[352772396,1739302257654,-500.0,0.00018972,2]
[352772397,1739302257665,-219.23,0.00018972,2]
[352772398,1739302257676,-500.0,0.00018972,2]
[352772399,1739302257688,-500.0,0.00018972,2]
[352772400,1739302257698,-500.0,0.00018972,2]
[352772401,1739302257709,-316.77,0.00018972,2]
[352772402,1739302257721,-500.0,0.00018972,2]
[352772403,1739302257732,-500.0,0.00018972,2]
[352772404,1739302257744,-500.0,0.00018972,2]
[352772405,1739302257756,-500.0,0.00018972,2]
[352772406,1739302257766,-500.0,0.00018972,2]
[352772407,1739302257776,-500.0,0.00018972,2]
[352772408,1739302257787,-500.0,0.00018972,2]
[352772409,1739302257798,-500.0,0.00018972,2]
[352772410,1739302257808,-500.0,0.00018972,2]
[352772411,1739302257819,-500.0,0.00018972,2]
[352772412,1739302257830,-500.0,0.00018972,2]
[352772413,1739302257840,-500.0,0.00018972,2]
[352772414,1739302257851,-568.94,0.00018972,2]
[352772415,1739302257862,-500.0,0.00018972,2]
[352772416,1739302257872,-500.0,0.00018972,2]
[352772417,1739302257883,-500.0,0.00018972,2]
[352772418,1739302257894,-500.0,0.00018972,2]
[352772419,1739302257905,-500.0,0.00018972,2]
[352772420,1739302257917,-500.0,0.00018972,2]
[352772421,1739302257929,-500.0,0.00018972,2]
[352772422,1739302257940,-500.0,0.00018972,2]
[352772423,1739302257951,-500.0,0.00018972,2]
[352772424,1739302257961,-500.0,0.00018972,2]
[352772425,1739302257972,-500.0,0.00018972,2]
[352772426,1739302257983,-500.0,0.00018972,2]
[352772427,1739302257994,-500.0,0.00018972,2]
[352772428,1739302258006,-500.0,0.00018972,2]
[352772429,1739302258016,-648.26,0.00018972,2]
[352772430,1739302258030,-1165.47,0.00018972,2]
[352772431,1739302258041,-500.0,0.00018972,2]
[352772432,1739302258051,-500.0,0.00018972,2]
[352772433,1739302258061,-500.0,0.00018972,2]
[352772434,1739302258073,-500.0,0.00018972,2]
[352772435,1739302258084,-500.0,0.00018972,2]
[352772436,1739302258094,-500.0,0.00018972,2]
[352772437,1739302258107,-500.0,0.00018972,2]
[352772438,1739302258121,-500.0,0.00018972,2]
[352772439,1739302258132,-500.0,0.00018972,2]
[352772440,1739302258142,-500.0,0.00018972,2]
[352772441,1739302258152,-500.0,0.00018972,2]
[352772442,1739302258163,-504.79,0.00018972,2]
[352772443,1739302258173,-500.0,0.00018972,2]
[352772444,1739302258183,-500.0,0.00018972,2]
[352772445,1739302258194,-557.4,0.00018972,2]
[352772446,1739302258204,-500.0,0.00018972,2]
[352772447,1739302258214,-500.0,0.00018972,2]
[352772448,1739302258225,-500.0,0.00018972,2]
[352772449,1739302258236,-500.0,0.00018972,2]
[352772450,1739302258248,-500.0,0.00018972,2]
[352772451,1739302258260,-500.0,0.00018972,2]
[352772452,1739302258270,-500.0,0.00018972,2]
[352772453,1739302258281,-500.0,0.00018972,2]
[352772454,1739302258292,-500.0,0.00018972,2]
[352772455,1739302258303,-500.0,0.00018972,2]
[352772456,1739302258315,-500.0,0.00018972,2]
[352772457,1739302258326,-500.0,0.00018972,2]
[352772458,1739302258338,-500.0,0.00018972,2]
[352772459,1739302258349,-500.0,0.00018972,2]
[352772460,1739302258363,-500.0,0.00018972,2]
[352772461,1739302258374,-500.0,0.00018972,2]
[352772462,1739302258385,-500.0,0.00018972,2]
[352772463,1739302258396,-500.0,0.00018972,2]
[352772464,1739302258408,-1000.0,0.00018972,2]
[352772465,1739302258419,-500.0,0.00018972,2]
[352772466,1739302258430,-500.0,0.00018972,2]
[352772467,1739302258441,-500.0,0.00018972,2]
[352772468,1739302258452,-500.0,0.00018972,2]
[352772469,1739302258464,-168.43419861,0.00018972,2]
[352772470,1739302258475,-500.0,0.00018972,2]
[352772471,1739302258486,-266.98,0.00018972,2]
[352772472,1739302258497,-500.0,0.00018972,2]
[352772473,1739302258509,-500.0,0.00018972,2]
[352772474,1739302258519,-500.0,0.00018972,2]
[352772475,1739302258530,-500.0,0.00018972,2]
[352772476,1739302258540,-500.0,0.00018972,2]
[352772477,1739302258551,-500.0,0.00018972,2]
[352772478,1739302258562,-500.0,0.00018972,2]
[352772479,1739302258573,-500.0,0.00018972,2]
[352772480,1739302258584,-657.25,0.00018972,2]
[352772481,1739302258595,-500.0,0.00018972,2]
[352772482,1739302258607,-500.0,0.00018972,2]
[352772483,1739302258619,-500.0,0.00018972,2]
[352772484,1739302258630,-500.0,0.00018972,2]
[352772485,1739302258641,-500.0,0.00018972,2]
[352772486,1739302258651,-500.0,0.00018972,2]
[352772487,1739302258662,-500.0,0.00018972,2]
[352772488,1739302258673,-500.0,0.00018972,2]
[352772489,1739302258683,-500.0,0.00018972,2]
[352772490,1739302258694,-500.0,0.00018972,2]
[352772491,1739302258705,-500.0,0.00018972,2]
[352772492,1739302258715,-500.0,0.00018972,2]
[352772493,1739302258727,-500.0,0.00018972,2]
[352772494,1739302258737,-238.36682504,0.00018972,2]
[352772495,1739302258749,-1093.287963,0.00018985,2]
[352772496,1739302258761,-2361.4559458,0.00018985,2]
[352772497,1739302258777,-500.0,0.00018991,2]
[352772498,1739302258788,-2095.0,0.00018991,2]
[352772499,1739302258798,-200.0,0.00018992,2]
[352772500,1739302258809,-1000.0,0.00018992,2]
[352772501,1739302258820,-1000.0,0.00018992,2]
[352772502,1739302258830,-1000.0,0.00018992,2]
[352772503,1739302259062,-1000.0,0.00018992,2]
[352772504,1739302259083,-1000.0,0.00018992,2]
[352772505,1739302259103,-1000.0,0.00018992,2]
[352772506,1739302259113,-1000.0,0.00018992,2]
[352772507,1739302259122,-1000.0,0.00018992,2]
[352772508,1739302259131,-1000.0,0.00018992,2]
[352772509,1739302259140,-1000.0,0.00018992,2]
[352772510,1739302259153,-1000.0,0.00018992,2]
[352772511,1739302259162,-1000.0,0.00018992,2]
[352772512,1739302259171,-1000.0,0.00018992,2]
[352772513,1739302259180,-1000.0,0.00018992,2]
[352772514,1739302259191,-1000.0,0.00018992,2]
[352772515,1739302259200,-1000.0,0.00018992,2]
[352772516,1739302259209,-1000.0,0.00018992,2]
[352772517,1739302259219,-1000.0,0.00018992,2]
[352772518,1739302259229,-1000.0,0.00018992,2]
[352772519,1739302259239,-1000.0,0.00018992,2]
[352772520,1739302259252,-1000.0,0.00018992,2]
[352772521,1739302259262,-1000.0,0.00018992,2]
[352772522,1739302259271,-1000.0,0.00018992,2]
[352772523,1739302259281,-1000.0,0.00018992,2]
[352772524,1739302259290,-1000.0,0.00018992,2]
[352772525,1739302259299,-1000.0,0.00018992,2]
[352772526,1739302259308,-1000.0,0.00018992,2]
[352772527,1739302259318,-1000.0,0.00018992,2]
[352772528,1739302259328,-421.85889654,0.00018992,2]
[352772529,1739302259337,-2017.45702,0.00018992,2]
[352772530,1739302259347,-451.24123776,0.00018998,2]
[352772531,1739302259356,-500.0,0.00018998,2]
[352772532,1739302259368,-500.0,0.00018998,2]
[352772533,1739302259377,-383229.97748687,0.00018999,7]
[352772534,1739302259387,-500.0,0.00018999,2]
[352772535,1739302259396,-500.0,0.00018999,2]
[352772536,1739302259406,-1221.74,0.00018999,2]
[352772537,1739302259415,-41589.84373466,0.00019,2]
[352772538,1739302259426,-132356.93220246,0.00019,2]
[352772539,1739302259606,-952.2,0.00019,2]
[352772540,1739302259620,-8399.91251989,0.00019,2]
[352772541,1739302259632,-445.34350354,0.00019,2]
[352772542,1739302259642,-7084.65599646,0.00019,2]
[352772543,1739302259742,-500.0,0.00016438,2]
[352772544,1739302259751,-151.82294,0.00016438,2]
[352772545,1739302259763,-348.17706,0.00016438,2]
[352772546,1739302259772,-250.32294004,0.00016712,2]
[352772547,1739302259783,-249.67705996,0.00016712,2]
[352772548,1739302259794,-500.0,0.00016849,2]
[352772549,1739302259803,-500.0,0.00016986,2]
[352772550,1739302259812,-500.0,0.00017123,2]
[352772551,1739302259822,-606.09007831,0.0001726,2]
[352772552,1739302259831,-197.1639579,0.00018698,2]
[352772553,1739302259842,-302.8360421,0.00018698,2]
[352772554,1739302259851,-247.9548265,0.00019,2]
[352772555,1739302259876,-500.0,0.00016438,2]
[352772556,1739302259887,-399.0412113,0.00016438,2]
[352772557,1739302259900,-100.9587887,0.00016438,2]
[352772558,1739302259911,-317.31355307,0.00019,2]
[352772559,1739302259924,-602.70380914,0.00019,2]
[352772560,1739302259936,-271.5587549,0.00019,2]
[352772561,1739302273391,1891.8899,8.836e-05,2]
[352772562,1739302302548,-879.6264,8.973e-05,2]
[352772563,1739302352849,266.6091,8.699e-05,2]
[352772564,1739302383563,562.4685,8.699e-05,2]
[352772565,1739302390769,-1944.6488,8.973e-05,2]
[352772566,1739302446887,-787.1711,8.973e-05,2]
[352772574,1739303418350,1000.0,0.0002,120]
[352772576,1739303435766,-150.0,9.87e-05,2]
[352772577,1739303435777,-168.2,0.00010137,2]
[352772578,1739303435787,-150.0,0.00012068,2]
[352772579,1739303435796,-9.8,0.00013,2]
[352772580,1739303435871,-540.2,0.00013,2]
[352772581,1739303435882,-2096.64,0.0001469,2]
[352772582,1739303435978,-104.59266285,0.0001469,2]
[352772583,1739303435988,-150.0,0.0001469,2]
[352772584,1739303435998,-250.0,0.00014735,2]
[352772585,1739303436008,-23900.0,0.00014762,2]
[352772586,1739303436018,-1000.0,0.00014799,2]
[352772587,1739303436028,-150.0,0.00014822,2]
[352772588,1739303436038,-1000.0,0.00014844,2]
[352772589,1739303436048,-2000.0,0.0001488,2]
[352772590,1739303436057,-1500.0,0.00014905,2]
[352772591,1739303436068,-600.0,0.00015,2]
[352772592,1739303436077,-500.0,0.00015164,2]
[352772593,1739303436087,-500.0,0.00015164,2]
[352772594,1739303436096,-173.99,0.00015205,2]
[352772595,1739303436106,-181.09094,0.0001521,3]
[352772596,1739303436116,-703.64,0.00015278,2]
[352772597,1739303436125,-329.81,0.00015801,2]
[352772598,1739303436136,-329.81,0.00015806,2]
[352772599,1739303436146,-329.81,0.0001581,2]
[352772600,1739303436156,-329.81,0.00015814,2]
[352772601,1739303436166,-329.81,0.00015818,2]
[352772602,1739303436176,-329.81,0.00015822,2]
[352772603,1739303436186,-329.81,0.00015826,2]
[352772604,1739303436195,-329.81,0.00015831,2]
[352772605,1739303436205,-329.81,0.00015835,2]
[352772606,1739303436214,-300.0,0.00015835,2]
[352772607,1739303436224,-329.81,0.00015839,2]
[352772608,1739303436234,-329.81,0.00015843,2]
[352772609,1739303436243,-329.81,0.00015847,2]
[352772610,1739303436253,-329.81,0.00015851,2]
[352772611,1739303436262,-329.81,0.00015856,2]
[352772612,1739303436272,-329.81,0.0001586,2]
[352772613,1739303436281,-329.81,0.00015864,2]
[352772614,1739303436291,-329.81,0.00015868,2]
[352772615,1739303436300,-329.81,0.00015872,2]
[352772616,1739303436310,-329.81,0.00015876,2]
[352772617,1739303436320,-329.81,0.00015881,2]
[352772618,1739303436330,-3813.27,0.00016128,2]
[352772619,1739303436339,-1496.43,0.00016311,2]
[352772620,1739303436349,-500.0,0.00016438,2]
[352772621,1739303436359,-500.0,0.00016438,2]
[352772622,1739303436368,-500.0,0.00016438,2]
[352772623,1739303436379,-500.0,0.00016438,2]
[352772624,1739303436391,-503.25144014,0.00016438,2]
[352772625,1739303436401,-609.20431027,0.00016438,2]
[352772626,1739303436412,-530.98,0.00016438,2]
[352772627,1739303436422,-500.0,0.00016438,2]
[352772628,1739303436432,-500.0,0.00016438,2]
[352772629,1739303436443,-500.0,0.00016438,2]
[352772630,1739303436456,-500.0,0.00016438,2]
[352772631,1739303436466,-500.0,0.00016438,2]
[352772632,1739303436476,-500.0,0.00016438,2]
[352772633,1739303436486,-500.0,0.00016438,2]
[352772634,1739303436497,-500.0,0.00016438,2]
[352772635,1739303436507,-500.0,0.00016438,2]
[352772636,1739303436517,-500.0,0.00016438,2]
[352772637,1739303436529,-500.00000001,0.00016438,2]
[352772638,1739303436538,-326.53605892,0.00016438,2]
[352772639,1739303436548,-500.0,0.00016438,2]
[352772640,1739303436558,-500.0,0.00016438,2]
[352772641,1739303436567,-575.49,0.00016438,2]
[352772642,1739303436577,-500.0,0.00016438,2]
[352772643,1739303436586,-500.0,0.00016438,2]
[352772644,1739303436596,-500.0,0.00016438,2]
[352772645,1739303436605,-500.0,0.00016438,2]
[352772646,1739303436615,-500.0,0.00016438,2]
[352772647,1739303436624,-500.0,0.00016438,2]
[352772648,1739303436635,-500.0,0.00016438,2]
[352772649,1739303436645,-500.0,0.00016438,2]
[352772650,1739303436655,-500.0,0.00016438,2]
[352772651,1739303436666,-500.0,0.00016438,2]
[352772652,1739303436676,-500.0,0.00016438,2]
[352772653,1739303436685,-500.0,0.00016438,2]
[352772654,1739303436695,-500.0,0.00016438,2]
[352772655,1739303436704,-509.84589114,0.00016438,2]
[352772656,1739303436714,-500.0,0.00016438,2]
[352772657,1739303436724,-500.0,0.00016438,2]
[352772658,1739303436733,-500.0,0.00016438,2]
[352772659,1739303436743,-500.0,0.00016438,2]
[352772660,1739303436753,-511.68862101,0.00016438,2]
[352772661,1739303436762,-502.37849685,0.00016438,2]
[352772662,1739303436772,-500.0,0.00016438,2]
[352772663,1739303436782,-500.0,0.00016438,2]
[352772664,1739303436792,-627.41,0.00016438,2]
[352772665,1739303436802,-500.0,0.00016438,2]
[352772666,1739303436812,-182.54481702,0.00016438,2]
[352772667,1739303436823,-500.0,0.00016438,2]
[352772668,1739303436835,-500.0,0.00016438,2]
[352772669,1739303436847,-500.0,0.00016438,2]
[352772670,1739303436861,-500.0,0.00016438,2]
[352772671,1739303436871,-500.0,0.00016438,2]
[352772672,1739303436880,-500.0,0.00016438,2]
[352772673,1739303436891,-500.0,0.00016438,2]
[352772674,1739303436901,-500.0,0.00016438,2]
[352772675,1739303436911,-500.0,0.00016438,2]
[352772676,1739303436920,-500.0,0.00016438,2]
[352772677,1739303436929,-500.0,0.00016438,2]
[352772678,1739303436939,-500.0,0.00016438,2]
[352772679,1739303436948,-500.0,0.00016438,2]
[352772680,1739303436956,-500.0,0.00016438,2]
[352772681,1739303436965,-500.0,0.00016438,2]
[352772682,1739303436974,-500.0,0.00016438,2]
[352772683,1739303436984,-500.0,0.00016438,2]
[352772684,1739303436993,-500.0,0.00016438,2]
[352772685,1739303437003,-500.0,0.00016438,2]
[352772686,1739303437012,-502.8004228,0.00016438,2]
[352772687,1739303437021,-500.0,0.00016438,2]
[352772688,1739303437030,-500.0,0.00016438,2]
[352772689,1739303437040,-500.0,0.00016438,2]
[352772690,1739303437049,-500.0,0.00016438,2]
[352772691,1739303437058,-500.0,0.00016438,2]
[352772692,1739303437067,-500.0,0.00016438,2]
[352772693,1739303437076,-500.0,0.00016438,2]
[352772694,1739303437086,-610.86,0.00016438,2]
[352772695,1739303437095,-500.0,0.00016438,2]
[352772696,1739303437104,-566.68794302,0.00016438,2]
[352772697,1739303437114,-252.2094335,0.00016438,2]
[352772698,1739303437124,-500.0,0.00016438,2]
[352772699,1739303437135,-500.0,0.00016438,2]
[352772700,1739303437145,-500.0,0.00016438,2]
[352772701,1739303437154,-500.0,0.00016438,2]
[352772702,1739303437164,-500.0,0.00016438,2]
[352772703,1739303437173,-505.84196152,0.00016438,2]
[352772704,1739303437183,-500.0,0.00016438,2]
[352772705,1739303437191,-500.0,0.00016438,2]
[352772706,1739303437200,-500.0,0.00016438,2]
[352772707,1739303437210,-500.0,0.00016438,2]
[352772708,1739303437219,-500.0,0.00016438,2]
[352772709,1739303437228,-500.0,0.00016438,2]
[352772710,1739303437237,-500.0,0.00016438,2]
[352772711,1739303437247,-500.0,0.00016438,2]
[352772712,1739303437257,-500.0,0.00016438,2]
[352772713,1739303437266,-500.0,0.00016438,2]
[352772714,1739303437276,-500.0,0.00016438,2]
[352772715,1739303437285,-500.0,0.00016438,2]
[352772716,1739303437295,-502.0529963,0.00016438,2]
[352772717,1739303437305,-500.0,0.00016438,2]
[352772718,1739303437316,-500.0,0.00016438,2]
[352772719,1739303437326,-420.05,0.00016438,2]
[352772720,1739303437335,-500.0,0.00016438,2]
[352772721,1739303437345,-562.37,0.00016438,2]
[352772722,1739303437354,-500.0,0.00016438,2]
[352772723,1739303437364,-500.0,0.00016438,2]
[352772724,1739303437376,-500.0,0.00016438,2]
[352772725,1739303437387,-500.0,0.00016438,2]
[352772726,1739303437396,-504.89526477,0.00016438,2]
[352772727,1739303437406,-239.56,0.00016438,2]
[352772728,1739303437415,-500.0,0.00016438,2]
[352772729,1739303437424,-500.0,0.00016438,2]
[352772730,1739303437434,-500.0,0.00016438,2]
[352772731,1739303437444,-500.0,0.00016438,2]
[352772732,1739303437457,-500.0,0.00016438,2]
[352772733,1739303437467,-500.0,0.00016438,2]
[352772734,1739303437478,-500.0,0.00016438,2]
[352772735,1739303437488,-163.84,0.00016438,2]
[352772736,1739303437497,-500.0,0.00016438,2]
[352772737,1739303437507,-500.0,0.00016438,2]
[352772738,1739303437517,-500.0,0.00016438,2]
[352772739,1739303437526,-500.0,0.00016438,2]
[352772740,1739303437536,-500.0,0.00016438,2]
[352772741,1739303437545,-500.0,0.00016438,2]
[352772742,1739303437554,-500.0,0.00016438,2]
[352772743,1739303437566,-500.0,0.00016438,2]
[352772744,1739303437575,-500.0,0.00016438,2]
[352772745,1739303437585,-500.0,0.00016438,2]
[352772746,1739303437595,-500.0,0.00016438,2]
[352772748,1739303437604,-500.0,0.00016438,2]
[352772749,1739303437612,-519.96,0.00016438,2]
[352772750,1739303437621,-545.44135117,0.00016438,2]
[352772751,1739303437631,-500.0,0.00016438,2]
[352772752,1739303437642,-556.76,0.00016438,2]
[352772753,1739303437652,-502.53,0.00016438,2]
[352772754,1739303437662,-500.0,0.00016438,2]
[352772755,1739303437671,-459.576226,0.00016438,2]
[352772756,1739303437680,-500.0,0.00016438,2]
[352772757,1739303437690,-160.99916,0.00016438,2]
[352772758,1739303437699,-291.19,0.00016438,2]
[352772759,1739303437710,-500.0,0.00016438,2]
[352772760,1739303437719,-500.0,0.00016438,2]
[352772761,1739303437729,-500.0,0.00016438,2]
[352772762,1739303437739,-500.0,0.00016438,2]
[352772763,1739303437748,-500.3,0.00016438,2]
[352772764,1739303437757,-500.0,0.00016438,2]
[352772765,1739303437767,-522.58,0.00016438,2]
[352772766,1739303437776,-299.44,0.00016438,2]
[352772767,1739303437785,-512.08,0.00016438,2]
[352772768,1739303437795,-500.65,0.00016438,2]
[352772769,1739303437805,-500.0,0.00016438,2]
[352772770,1739303437815,-500.0,0.00016438,2]
[352772771,1739303437825,-500.0,0.00016438,2]
[352772772,1739303437835,-17517.746299,0.00016438,2]
[352772773,1739303437845,-500.0,0.00016438,2]
[352772774,1739303437855,-530.92,0.00016438,2]
[352772775,1739303437866,-500.0,0.00016438,2]
[352772776,1739303437876,-500.0,0.00016438,2]
[352772777,1739303437886,-500.0,0.00016438,2]
[352772778,1739303437895,-500.0,0.00016438,2]
[352772779,1739303437904,-500.0,0.00016438,2]
[352772780,1739303437914,-500.0,0.00016438,2]
[352772781,1739303437923,-500.0,0.00016438,2]
[352772782,1739303437932,-500.0,0.00016438,2]
[352772783,1739303437942,-500.0,0.00016438,2]
[352772784,1739303437953,-500.0,0.00016438,2]
[352772785,1739303437963,-500.0,0.00016438,2]
[352772786,1739303437973,-500.0,0.00016438,2]
[352772787,1739303437983,-623.46,0.00016438,2]
[352772788,1739303437993,-274.62,0.00016438,2]
[352772789,1739303438004,-500.0,0.00016438,2]
[352772790,1739303438015,-500.0,0.00016438,2]
[352772791,1739303438024,-500.0,0.00016438,2]
[352772793,1739303438034,-500.0,0.00016438,2]
[352772794,1739303438044,-500.0,0.00016438,2]
[352772796,1739303438054,-500.0,0.00016438,2]
[352772798,1739303438063,-500.0,0.00016438,2]
[352772799,1739303438073,-304.40184219,0.00016438,2]
[352772800,1739303438083,-500.0,0.00016438,2]
[352772801,1739303438092,-500.0,0.00016438,2]
[352772802,1739303438101,-500.0,0.00016438,2]
[352772803,1739303438112,-500.0,0.00016438,2]
[352772804,1739303438121,-500.0,0.00016438,2]
[352772805,1739303438131,-500.0,0.00016438,2]
[352772806,1739303438143,-502.79541588,0.00016438,2]
[352772807,1739303438153,-500.0,0.00016438,2]
[352772808,1739303438163,-500.0,0.00016438,2]
[352772809,1739303438173,-500.0,0.00016438,2]
[352772810,1739303438182,-500.0,0.00016438,2]
[352772811,1739303438193,-500.0,0.00016438,2]
[352772812,1739303438203,-500.0,0.00016438,2]
[352772813,1739303438213,-500.0,0.00016438,2]
[352772814,1739303438222,-465.74730922,0.00016438,2]
[352772815,1739303438232,-276.88306825,0.00016438,2]
[352772816,1739303438242,-500.0,0.00016438,2]
[352772817,1739303438252,-500.0,0.00016438,2]
[352772818,1739303438261,-500.0,0.00016438,2]
[352772819,1739303438272,-500.0,0.00016438,2]
[352772820,1739303438282,-500.0,0.00016438,2]
[352772821,1739303438291,-500.0,0.00016438,2]
[352772822,1739303438301,-500.0,0.00016438,2]
[352772823,1739303438312,-500.0,0.00016438,2]
[352772824,1739303438321,-500.0,0.00016438,2]
[352772825,1739303438331,-500.0,0.00016438,2]
[352772826,1739303438340,-500.0,0.00016438,2]
[352772828,1739303438349,-500.0,0.00016438,2]
[352772830,1739303438358,-500.0,0.00016438,2]
[352772831,1739303438367,-500.0,0.00016438,2]
[352772832,1739303438376,-500.0,0.00016438,2]
[352772833,1739303438388,-500.0,0.00016438,2]
[352772834,1739303438398,-500.0,0.00016438,2]
[352772835,1739303438407,-500.0,0.00016438,2]
[352772836,1739303438417,-500.0,0.00016438,2]
[352772837,1739303438426,-500.0,0.00016438,2]
[352772838,1739303438436,-500.0,0.00016438,2]
[352772839,1739303438446,-500.0,0.00016438,2]
[352772841,1739303438459,-500.0,0.00016438,2]
[352772843,1739303438468,-500.0,0.00016438,2]
[352772845,1739303438477,-500.0,0.00016438,2]
[352772847,1739303438487,-507.5316692,0.00016438,2]
[352772849,1739303438496,-500.0,0.00016438,2]
[352772851,1739303438506,-500.0,0.00016438,2]
[352772853,1739303438516,-500.0,0.00016438,2]
[352772855,1739303438526,-500.0,0.00016438,2]
[352772857,1739303438536,-500.0,0.00016438,2]
[352772859,1739303438546,-500.0,0.00016438,2]
[352772861,1739303438555,-500.0,0.00016438,2]
[352772863,1739303438565,-500.0,0.00016438,2]
[352772865,1739303438575,-500.0,0.00016438,2]
[352772867,1739303438584,-500.0,0.00016438,2]
[352772869,1739303438593,-500.0,0.00016438,2]
[352772871,1739303438603,-500.0,0.00016438,2]
[352772873,1739303438612,-500.0,0.00016438,2]
[352772875,1739303438621,-500.0,0.00016438,2]
[352772877,1739303438630,-500.0,0.00016438,2]
[352772878,1739303438643,-500.0,0.00016438,2]
[352772881,1739303438654,-458.0984364,0.00016438,2]
[352772883,1739303438663,-500.0,0.00016438,2]
[352772884,1739303438672,-500.0,0.00016438,2]
[352772887,1739303438682,-500.0,0.00016438,2]
[352772888,1739303438691,-500.0,0.00016438,2]
[352772890,1739303438701,-500.0,0.00016438,2]
[352772892,1739303438710,-208.04743106,0.00016438,2]